[Event "Israel Team Championship 2025"]
[Site "Israel"]
[Date "2025.01.17"]
[Round "3.36"]
[White "Poleg, Dan"]
[Black "Veinberg, Nimrod"]
[Result "0-1"]
[Annotator "TA"]
[ECO "D38"]
[WhiteElo "2189"]
[BlackElo "2400"]
[PlyCount "80"]
[EventDate "2025.01.07"]
[EventType "team-tourn"]
[EventCountry "ISR"]
[SourceTitle "playchess.com"]
[Source "ChessBase"]
[SourceQuality "1"]
[TimeControl "40/5400+30:1800+30"]

{[%evp 15,80,6,0,16,14,19,29,20,27,-13,0,0,23,8,11,14,24,19,19,20,116,124,202,194,208,203,350,329,333,333,320,339,347,347,328,336,337,335,335,0,0,0,354,0,378,267,269,-7,453,337,322,157,147,15,91,-237,-212,-165,81,0,0,-29982,-29983,-29983,-29983,-29992,-29993]} 1. d4 {[%emt 0:00:04]} Nf6 {[%emt 0:00:07]} 2. Nf3 {[%emt 0:00:12]} d5 {[%emt 0:00:16]} 3. c4 {[%emt 0:00:21]} e6 {[%emt 0:00:11]} 4. Nc3 {[%emt 0:00:11]} Nbd7 {[%emt 0:00:18]} 5. Bg5 {[%emt 0:00:13]} Bb4 {[%emt 0:00:13]} 6. e3 {[%emt 0:00:34]} c5 {[%emt 0:00:14]} 7. cxd5 {[%emt 0:01:05]} exd5 {[%emt 0:00:14]} 8. dxc5 {[%emt 0:01:26]} Qa5 {[%emt 0:00:44]} 9. Nd2 {[%emt 0:17:40]} Bxc3 {[%emt 0:07:24]} 10. bxc3 {[%emt 0:00:38]} Qxc3 {[%emt 0:11:47]} 11. Bxf6 {[%emt 0:01:48]} Nxf6 {[%emt 0:02:10]} 12. Qa4+ {[%emt 0:00:27]} Bd7 {[%emt 0:02:27]} 13. Qd4 {[%emt 0:00:08]} Qa5 {[%emt 0:00:47]} 14. Be2 {[%emt 0:08:04]} Ne4 {[%emt 0:05:10]} 15. Bf3 {[%emt 0:09:25]} O-O-O {[%emt 0:09:01]} 16. Bxe4 {[%emt 0:11:29]} (16. Qxd5 $2 Bb5 (16... Nxc5 $2 17. Rc1 $18) 17. Qf5+ Kb8 (17... Rd7 $2 18. Qxd7+ Kxd7 19. Bxe4 $19) 18. Qe5+ Ka8 $19) (16. a3 {simplifies} Qxd2+ 17. Qxd2 Nxd2 18. Kxd2 Bf5 19. Kc3) 16... dxe4 {[%emt 0:00:07]} 17. a3 $1 {[%emt 0:00:03][%cal Od4b4]} (17. Qxg7 $2 Rhg8 (17... Qxc5 18. O-O $16) 18. Qb2 Rxg2 $19) (17. O-O $2 Bb5 18. Qxg7 Qxd2 $19) 17... Qa6 {[%emt 0:16:29]} (17... Rhe8 $11) 18. Nxe4 $16 {[%emt 0:03:06]} (18. Qxe4 Rhe8 19. Qb4 Qd3 $11) 18... Bg4 {[%emt 0:05:13]} (18... Qa5+ 19. Qb4 Qxb4+ 20. axb4 $16) (18... Bc6 $16 19. Nd6+ (19. Qxg7 $2 Bxe4 20. Qb2 Bxg2 $19) 19... Kb8) 19. Qb2 $1 $18 {[%emt 0:04:02]} (19. Qxg7 $2 Qe2#) (19. Nd6+ $6 Rxd6 20. Qxg4+ Rd7 $11) 19... Rd5 {[%emt 0:14:06]} 20. f3 $1 {[%emt 0:02:11]} (20. Qxg7 $2 Qe2#) 20... Kb8 {[%emt 0:05:11]} (20... Be6 {keeps fighting.} 21. Kf2 (21. Qxg7 Rhd8 $18) 21... f6) 21. Qxg7 {[%emt 0:37:53]} Rhd8 {[%emt 0:03:45]} 22. Qxg4 {[%emt 0:00:00]} f5 {[%emt 0:00:11]} 23. Qf4+ {[%emt 0:00:00]} Ka8 {[%emt 0:00:27]} 24. Nc3 {[%emt 0:00:00]} Rxc5 {[%emt 0:08:10]} 25. Qb4 $1 {[%emt 0:00:00]} Rc4 {[%emt 0:04:12]} 26. Qb3 {[%emt 0:00:00]} Rdc8 {[%emt 0:00:48]} 27. Nb5 $2 {[%emt 0:01:51]} ({White should try} 27. Ne2 $18) 27... Qa5+ $1 $11 {[%emt 0:00:35]} 28. Kf1 $1 {[%emt 0:00:27]} R4c5 $2 {[%emt 0:02:28][%mdl 8192]} (28... Qd2 $1 $11 29. Rd1 Rc1 30. Nc7+ Kb8 31. Rxc1 (31. Na6+ Ka8 $11) 31... Qxc1+ 32. Ke2 Qxh1 33. Na6+ Ka8 34. Nc7+ Kb8) 29. a4 $2 {[%emt 0:00:56]} (29. Nd4 $18) 29... Qd8 $2 {[%emt 0:01:31][%mdl 8192]} (29... Qd2 $1 $11 30. Rd1 Rc1 31. Nc7+ Kb8 32. Na6+ (32. Rxc1 Qxc1+ 33. Ke2 Qxh1 $11) 32... Ka8 33. Nc7+) 30. Rd1 {[%emt 0:00:15]} Rc1 {[%emt 0:00:04]} 31. Nd4 $2 {[%emt 0:00:47] [#]} (31. Ke1 $1 $18) 31... f4 $2 {[%emt 0:00:27][%mdl 8192]} 32. Kf2 {[%emt 0:00:41]} (32. Ke2 R1c3 33. Qa2 Qg5 $18) 32... R1c3 {[%emt 0:00:25]} 33. Qb2 {[%emt 0:00:26]} (33. Qf7 $18 {has better winning chances.} fxe3+ 34. Kg3) 33... fxe3+ $16 {[%emt 0:00:28] [#]} 34. Ke2 {[%emt 0:00:02]} ({Only move:} 34. Ke1 $1 $16 a6 35. g3) 34... Qg8 {[%emt 0:00:19]} (34... Qh4 $1 $11 {remains equal.} 35. g3 Qh3) 35. g3 $2 {[%emt 0:00:57][%mdl 8192]} (35. Kf1 $16 {g3 would now be deadly.} Qc4+ 36. Ne2) 35... Qc4+ $19 {[%emt 0:00:05]} 36. Ke1 {[%emt 0:00:01]} Qxa4 $2 {[%emt 0:00:26]} ({Better is} 36... Rc1 $19 {and ...Rxd1+ should not be overlooked} 37. Qxc1 (37. Ne2 $2 Rc2 $19) 37... Qxc1 38. Rxc1 Rxc1+ 39. Ke2 Rxh1) 37. Ne2 {[%emt 0:00:59]} (37. Rg1 $16) 37... Rc2 $11 {[%emt 0:00:41] Really sharp!} 38. Rc1 $2 {[%emt 0:00:13][%mdl 8192]} (38. Qe5 $11) 38... Qa5+ {[%emt 0:01:33]} 39. Kf1 {[%emt 0:00:07]} Qf5 {[%emt 0:00:12]} 40. f4 {[%emt 0:01:07]} Rxb2 {[%emt 0:00:22]} 0-1